bitfinex/quotes_BTCUSD_20251113
["timestamp","ask_amount","ask_price","bid_price","bid_amount"]
[1762992000517,0.07522726,101730.0,101720.0,0.10063]
[1762992000725,0.09358805,101730.0,101720.0,0.10063]
[1762992001816,0.09358805,101730.0,101720.0,0.14404874]
[1762992002375,0.11146805,101730.0,101720.0,0.14404874]
[1762992002576,0.11146805,101730.0,101720.0,0.09752874]
[1762992003185,0.11146805,101730.0,101710.0,0.06817252]
[1762992003186,0.15508318,101730.0,101710.0,0.06817252]
[1762992003538,0.16754893,101720.0,101710.0,9.252e-05]
[1762992003920,0.1859062,101720.0,101710.0,9.252e-05]
[1762992005310,0.42520436,101720.0,101710.0,9.252e-05]
[1762992008735,0.50844187,101720.0,101710.0,9.252e-05]
[1762992008936,0.59312772,101720.0,101710.0,9.252e-05]
[1762992009290,0.61956973,101720.0,101710.0,9.252e-05]
[1762992009631,0.62874051,101720.0,101710.0,9.252e-05]
[1762992009957,0.59847593,101720.0,101710.0,9.252e-05]
[1762992010157,0.60047593,101720.0,101710.0,9.252e-05]
[1762992010616,0.52596604,101720.0,101710.0,9.252e-05]
[1762992010865,0.53315325,101720.0,101710.0,9.252e-05]
[1762992011462,0.59524772,101720.0,101710.0,9.252e-05]
[1762992012015,0.4484674,101720.0,101710.0,9.252e-05]
[1762992012645,0.4504674,101720.0,101710.0,9.252e-05]
[1762992014584,0.4076674,101720.0,101710.0,9.252e-05]
[1762992014799,0.42936436,101720.0,101710.0,9.252e-05]
[1762992015167,0.42932436,101720.0,101710.0,9.252e-05]
[1762992015585,0.49945426,101720.0,101710.0,9.252e-05]
[1762992015826,0.52157049,101720.0,101710.0,9.252e-05]
[1762992016233,0.42632436,101720.0,101710.0,9.252e-05]
[1762992016674,0.44744266,101720.0,101710.0,9.252e-05]
[1762992020369,0.50953713,101720.0,101710.0,9.252e-05]
[1762992021674,0.51053713,101720.0,101710.0,9.252e-05]
[1762992021876,0.53946799,101720.0,101710.0,9.252e-05]
[1762992022081,0.63278206,101720.0,101710.0,9.252e-05]
[1762992024765,0.60195217,101720.0,101710.0,9.252e-05]
[1762992025018,0.57068759,101720.0,101710.0,9.252e-05]
[1762992025218,0.57065883,101720.0,101710.0,9.252e-05]
[1762992027565,0.43654476,101720.0,101710.0,9.252e-05]
[1762992027781,0.47938476,101720.0,101710.0,9.252e-05]
[1762992028390,0.47738476,101720.0,101710.0,9.252e-05]
[1762992028606,0.47538476,101720.0,101710.0,9.252e-05]
[1762992028815,0.47638476,101720.0,101710.0,9.252e-05]
[1762992029023,0.57580511,101720.0,101710.0,9.252e-05]
[1762992029250,0.39127476,101720.0,101710.0,0.13734126]
[1762992029449,0.40511476,101720.0,101710.0,0.09453126]
[1762992029719,0.38400542,101720.0,101710.0,0.09453126]
[1762992030388,0.45572542,101720.0,101710.0,0.04351126]
[1762992030606,0.45572542,101720.0,101710.0,9.252e-05]
[1762992030818,0.57611914,101720.0,101710.0,9.252e-05]
[1762992033442,0.50811396,101720.0,101710.0,9.252e-05]
[1762992036188,0.51729784,101720.0,101710.0,9.252e-05]
[1762992037549,0.50811396,101720.0,101710.0,0.04351126]
[1762992037757,0.47684938,101720.0,101710.0,0.04351126]
[1762992038388,0.36228938,101720.0,101710.0,0.13808126]
[1762992038594,0.40512938,101720.0,101710.0,0.13808126]
[1762992038811,0.36228938,101720.0,101710.0,0.33471875]
[1762992039026,0.36228938,101720.0,101710.0,0.13808126]
[1762992039241,0.45572542,101720.0,101710.0,0.06512126]
[1762992039452,0.47690219,101720.0,101710.0,0.04351126]
[1762992040322,0.44597133,101720.0,101710.0,0.04351126]
[1762992040532,0.51972829,101720.0,101710.0,0.04351126]
[1762992041425,0.43094881,101720.0,101710.0,0.04351126]
[1762992042427,0.35819185,101720.0,101710.0,0.04351126]
[1762992047060,0.30851305,101710.0,101700.0,1e-08]
[1762992047208,0.36538966,101710.0,101700.0,1e-08]
[1762992047826,0.40826966,101710.0,101700.0,1e-08]
[1762992048043,0.43427995,101710.0,101700.0,1e-08]
[1762992048258,0.43527995,101710.0,101700.0,1e-08]
[1762992048417,0.41026966,101710.0,101700.0,1e-08]
[1762992048618,0.38380603,101710.0,101700.0,1e-08]
[1762992049453,0.34092603,101710.0,101700.0,1e-08]
[1762992049661,0.34092603,101710.0,101700.0,0.13798875]
[1762992049662,0.24825678,101710.0,101700.0,0.13798875]
[1762992049884,0.59296001,101710.0,101700.0,0.13798875]
[1762992050061,0.26996001,101710.0,101700.0,0.09333875]
[1762992050402,0.74036111,101710.0,101700.0,0.06502875]
[1762992050598,0.4160659,101710.0,101700.0,0.04341875]
[1762992050768,0.71791131,101710.0,101700.0,0.04341875]
[1762992051274,0.64244751,101710.0,101700.0,0.09333875]
[1762992051479,0.61405195,101710.0,101700.0,0.09333875]
[1762992051684,0.61405195,101710.0,101700.0,0.13798875]
[1762992053223,0.63240972,101710.0,101700.0,0.13798875]
[1762992053438,0.63240972,101710.0,101700.0,0.04341875]
[1762992053621,0.7189722,101710.0,101700.0,0.04341875]
[1762992053819,0.7189722,101710.0,101700.0,0.06502875]
[1762992054686,0.60277972,101710.0,101700.0,0.33464558]
[1762992055865,0.60277972,101710.0,101700.0,0.13798875]
[1762992056105,0.60177972,101710.0,101700.0,0.13798875]
[1762992056520,0.60077972,101710.0,101700.0,0.13798875]
[1762992056733,0.60077972,101710.0,101700.0,0.33464558]
[1762992057011,0.36255744,101710.0,101700.0,0.33464558]
[1762992057179,4.696e-05,101710.0,101700.0,0.33464558]
[1762992062967,4.696e-05,101710.0,101700.0,0.37752558]
[1762992064619,4.696e-05,101710.0,101700.0,0.38352558]
[1762992065059,4.696e-05,101710.0,101700.0,0.71652557]
[1762992065287,4.696e-05,101710.0,101700.0,0.80494593]
[1762992065503,4.696e-05,101710.0,101700.0,0.39056558]
[1762992069683,4.696e-05,101710.0,101700.0,0.39060558]
[1762992071460,0.19668445,101710.0,101700.0,0.34768558]
[1762992071701,0.19668445,101710.0,101700.0,0.30426684]
[1762992072106,0.19668445,101710.0,101700.0,0.10761001]
[1762992072313,0.19668445,101710.0,101700.0,0.14502875]
[1762992072524,0.23706177,101710.0,101700.0,0.13802875]
[1762992072724,0.23706177,101710.0,101700.0,0.33568558]
[1762992072923,0.19668445,101710.0,101700.0,0.14002875]
[1762992074288,0.19668445,101710.0,101700.0,0.33668558]
[1762992079096,0.19619531,101710.0,101700.0,0.33668558]
[1762992079474,0.32360531,101710.0,101700.0,0.04545875]
[1762992080543,0.23907531,101710.0,101700.0,0.13701875]
[1762992081315,0.33761961,101710.0,101700.0,0.09539875]
[1762992081510,0.33761961,101710.0,101700.0,0.06593875]
[1762992082142,0.37774961,101710.0,101700.0,0.06593875]
[1762992084318,0.37774961,101710.0,101700.0,0.04545875]
[1762992086187,0.39607586,101710.0,101700.0,0.04545875]
[1762992086429,0.35594586,101710.0,101700.0,0.04545875]
[1762992086633,0.33761961,101710.0,101700.0,0.04545875]
[1762992087086,0.35594515,101710.0,101700.0,0.04545875]
[1762992087286,0.37774961,101710.0,101700.0,0.04545875]
[1762992087489,0.39607437,101710.0,101700.0,0.04545875]
[1762992088160,0.37774961,101710.0,101700.0,0.04545875]
[1762992089552,0.39606899,101710.0,101700.0,0.04545875]
[1762992089755,0.39606899,101710.0,101700.0,0.00204001]
[1762992089958,0.77172645,101710.0,101700.0,0.00204001]
[1762992090298,0.80256849,101710.0,101700.0,0.00204001]
[1762992090693,0.80256849,101710.0,101700.0,0.00104001]
[1762992091844,0.80256849,101710.0,101700.0,4.001e-05]
[1762992094846,0.77101051,101710.0,101700.0,4.001e-05]
[1762992095068,0.74016847,101710.0,101700.0,4.001e-05]
[1762992095265,0.64314417,101710.0,101700.0,4.001e-05]
[1762992095523,0.62475469,101710.0,101700.0,0.06272875]
[1762992096147,0.62479469,101710.0,101700.0,0.06272875]
[1762992096524,0.59732469,101710.0,101700.0,0.08901875]
[1762992096749,0.59728469,101710.0,101700.0,0.13172875]
[1762992097149,0.55444469,101710.0,101700.0,0.13172875]
[1762992097349,0.59728469,101710.0,101700.0,0.13172875]
[1762992098174,0.55444469,101710.0,101700.0,0.13172875]
[1762992098375,0.59728469,101710.0,101700.0,0.13172875]
[1762992100771,0.76017793,101710.0,101700.0,0.04345875]
[1762992101384,0.78128681,101710.0,101700.0,0.04345875]
[1762992102568,0.41423917,101710.0,101700.0,0.04345875]
[1762992103153,0.58269666,101710.0,101700.0,0.13172875]
[1762992104449,0.58079687,101710.0,101700.0,0.13172875]
[1762992105098,0.58079687,101710.0,101700.0,0.32838558]
[1762992105302,0.01831938,101710.0,101700.0,0.32838558]
[1762992105519,0.06115938,101710.0,101700.0,0.38710275]
[1762992106049,0.01831938,101710.0,101700.0,0.38710275]
[1762992106633,0.06115938,101710.0,101700.0,0.38710275]
[1762992106848,0.01831938,101710.0,101700.0,0.38710275]
[1762992107134,0.21495687,101710.0,101700.0,0.38710275]
[1762992107733,0.21495687,101710.0,101700.0,0.32838558]
[1762992109805,0.01831938,101710.0,101700.0,0.32838558]
[1762992110657,0.23945875,101720.0,101700.0,0.32838558]
[1762992110870,0.25778972,101720.0,101710.0,0.08827]
[1762992111715,0.21494972,101720.0,101710.0,0.28490749]
[1762992111945,0.25778972,101720.0,101710.0,0.08827]
[1762992115385,0.25778972,101720.0,101710.0,0.28490749]
[1762992115531,0.25778972,101720.0,101710.0,0.08827]
[1762992117080,0.21494972,101720.0,101710.0,0.08827]
[1762992117286,0.25774913,101720.0,101710.0,0.08827]
[1762992120680,0.24774913,101720.0,101710.0,0.08827]
[1762992120882,0.27488913,101720.0,101710.0,0.01927]
[1762992121131,0.26655816,101720.0,101710.0,0.01927]
[1762992121326,0.35023105,101720.0,101710.0,0.01927]
[1762992122067,0.19663749,101710.0,101700.0,4.001e-05]
[1762992122272,0.26592749,101710.0,101700.0,4.001e-05]
[1762992122825,0.58892749,101710.0,101700.0,4.001e-05]
[1762992123302,0.61003046,101710.0,101700.0,0.00104001]
[1762992123707,0.55752749,101710.0,101700.0,0.00104001]
[1762992123907,0.55752749,101710.0,101700.0,0.02024001]
[1762992126163,0.57863482,101710.0,101700.0,0.02024001]
[1762992127180,0.55149482,101710.0,101700.0,0.08994875]
[1762992127363,0.56247749,101710.0,101700.0,0.13015875]
[1762992127792,0.19663749,101710.0,101700.0,0.32681558]
[1762992127997,0.23951749,101710.0,101700.0,0.32681558]
[1762992129003,0.22500375,101720.0,101700.0,0.32681558]
[1762992129004,0.26788375,101720.0,101700.0,0.32681558]
[1762992129217,0.23949816,101720.0,101710.0,0.28233749]
[1762992129335,0.23949816,101720.0,101710.0,0.0857]
[1762992130137,0.19661816,101720.0,101710.0,0.28233749]
[1762992130337,0.23949816,101720.0,101710.0,0.28233749]
[1762992131232,0.23949816,101720.0,101710.0,0.0857]
[1762992132319,0.04288,101720.0,101710.0,0.28233749]
[1762992132554,0.23947895,101730.0,101720.0,0.19661816]
[1762992132798,0.06125105,101730.0,101720.0,0.3257369]
[1762992133493,0.01837105,101730.0,101720.0,0.3257369]
[1762992133730,0.06125105,101730.0,101720.0,0.3257369]
[1762992134741,0.01837105,101730.0,101720.0,0.3833445]
[1762992134948,0.35725776,101740.0,101730.0,0.28229884]
[1762992135150,0.2577981,101740.0,101730.0,0.28229884]
[1762992135363,0.06120105,101740.0,101730.0,0.32571758]
[1762992135782,0.25778056,101740.0,101730.0,0.32571758]
[1762992136020,0.25778056,101740.0,101730.0,0.37969573]
[1762992136455,0.06120105,101740.0,101730.0,0.37969573]
[1762992136871,0.25778056,101740.0,101730.0,0.38069573]
[1762992137068,0.01832105,101740.0,101730.0,0.38069573]
[1762992137223,0.19661645,101750.0,101730.0,0.38069573]
[1762992137433,0.2578528,101750.0,101740.0,0.0857]
[1762992137673,0.2578528,101750.0,101740.0,0.12020156]
[1762992138277,0.2578528,101750.0,101740.0,0.28227951]
[1762992138688,0.2149728,101750.0,101740.0,0.28227951]
[1762992138865,0.2578528,101750.0,101740.0,0.28227951]
[1762992139072,0.01835635,101750.0,101740.0,0.28227951]
[1762992139227,0.25779654,101750.0,101740.0,0.32569825]
[1762992139426,0.23948718,101750.0,101740.0,0.32569825]
[1762992139858,0.23948718,101750.0,101740.0,0.38953377]
[1762992140072,0.23948718,101750.0,101740.0,0.39053377]
[1762992140293,0.23948718,101750.0,101740.0,0.32669825]
[1762992140892,0.04292699,101750.0,101740.0,0.32669825]
[1762992141081,0.23948718,101750.0,101740.0,0.32669825]
[1762992141276,0.09525749,101750.0,101740.0,0.32669825]
[1762992141481,0.19656019,101750.0,101740.0,0.19405426]
[1762992141897,0.19656019,101750.0,101740.0,0.13011874]
[1762992144038,0.19656019,101750.0,101740.0,0.32669825]
[1762992144227,0.19656019,101750.0,101740.0,0.13011874]
[1762992144428,0.21483815,101750.0,101740.0,0.13011874]
[1762992144838,0.21483815,101750.0,101740.0,0.32669825]
[1762992145038,0.21483815,101750.0,101740.0,0.13011874]
[1762992147342,0.21483119,101750.0,101740.0,0.13011874]
[1762992149400,0.018271,101750.0,101740.0,0.13011874]
[1762992149602,0.21483119,101750.0,101740.0,0.32669825]
[1762992149805,0.21483119,101750.0,101740.0,0.13011874]
[1762992150205,0.21483119,101750.0,101740.0,0.32669825]
[1762992150681,0.21483119,101750.0,101740.0,0.13011874]
[1762992151168,0.21483119,101750.0,101740.0,0.32669825]
[1762992151394,0.21483119,101750.0,101740.0,0.13011874]
[1762992152351,0.21483119,101750.0,101740.0,0.32669825]
[1762992154364,0.21483119,101750.0,101740.0,0.13011874]
[1762992156789,0.21483119,101750.0,101740.0,0.32669825]
[1762992157621,0.21483119,101750.0,101740.0,0.13011874]
[1762992159505,0.21483119,101750.0,101740.0,0.37097109]
[1762992159870,0.21483119,101750.0,101740.0,0.32669825]
[1762992160435,0.018271,101750.0,101740.0,0.32669825]
[1762992163763,0.061071,101750.0,101740.0,0.32669825]
[1762992166198,0.018271,101750.0,101740.0,0.32669825]
[1762992166400,0.061031,101750.0,101740.0,0.32669825]
[1762992167635,0.018271,101750.0,101740.0,0.39062904]
[1762992170444,0.21483119,101750.0,101740.0,0.32669825]
[1762992170645,0.018271,101750.0,101740.0,0.32669825]
[1762992170869,0.21483119,101750.0,101740.0,0.32669825]
[1762992171455,0.018271,101750.0,101740.0,0.32669825]
[1762992173336,0.21483119,101750.0,101740.0,0.32669825]
[1762992173538,0.21483119,101750.0,101740.0,0.0867]
[1762992173714,0.21483119,101750.0,101740.0,0.24306951]
[1762992173913,0.21483119,101750.0,101740.0,0.13161874]
[1762992174944,0.21483119,101750.0,101740.0,0.32819825]
[1762992175339,0.21483119,101750.0,101740.0,0.13161874]
[1762992175491,0.21483119,101750.0,101740.0,0.32819825]
[1762992175887,0.018271,101750.0,101740.0,0.38688102]
[1762992176085,0.25759119,101750.0,101740.0,0.38688102]
[1762992176314,0.25759119,101750.0,101740.0,0.32819825]
[1762992180355,0.061031,101750.0,101740.0,0.32819825]
[1762992181898,0.25759119,101750.0,101740.0,0.32819825]
[1762992182102,0.25759119,101750.0,101740.0,0.13161874]
[1762992182298,0.25759119,101750.0,101740.0,0.32819825]
[1762992184726,0.018271,101750.0,101740.0,0.40153102]
[1762992184936,0.26676608,101760.0,101750.0,0.04341874]
[1762992185147,0.19656019,101750.0,101740.0,0.0882]
[1762992185373,0.21493631,101750.0,101740.0,0.0882]
[1762992185585,0.21493631,101750.0,101740.0,0.13161874]
[1762992185788,0.21493631,101750.0,101740.0,0.13061874]
[1762992188018,0.21493631,101750.0,101740.0,0.13161874]
[1762992188530,0.27135631,101750.0,101740.0,0.06361874]
[1762992188736,0.27135631,101750.0,101740.0,0.04441874]
[1762992189184,0.24202631,101750.0,101740.0,0.04441874]
[1762992190622,0.21493631,101750.0,101740.0,0.12779874]
[1762992191758,0.21493631,101750.0,101740.0,0.12751252]
[1762992192345,0.21493631,101750.0,101740.0,0.32409203]
[1762992194150,0.21493631,101750.0,101740.0,0.37808101]
[1762992194337,0.25769631,101750.0,101740.0,0.37808101]
[1762992194540,0.25769631,101750.0,101740.0,0.32409203]
[1762992194817,0.01837612,101750.0,101740.0,0.32409203]
[1762992195028,0.04272,101750.0,101740.0,0.32409203]
[1762992195440,0.19698978,101760.0,101750.0,0.19656019]
[1762992195647,0.25811741,101760.0,101750.0,0.27994019]
[1762992195849,0.25811741,101760.0,101750.0,0.33387341]
[1762992196261,0.25811741,101760.0,101750.0,0.27994019]
[1762992196666,0.06157653,101760.0,101750.0,0.27994019]
[1762992196870,0.06157514,101760.0,101750.0,0.27994019]
[1762992197075,0.25811602,101760.0,101750.0,0.27994019]
[1762992197487,0.06157514,101760.0,101750.0,0.27994019]
[1762992199020,0.25811602,101760.0,101750.0,0.27994019]
[1762992199920,0.25807602,101760.0,101750.0,0.32335893]
[1762992200302,0.06153514,101760.0,101750.0,0.32335893]
[1762992200504,0.06153514,101760.0,101750.0,0.37722077]
[1762992200769,0.01881514,101760.0,101750.0,0.37722077]
[1762992200981,0.01881514,101760.0,101750.0,0.37822077]
[1762992201178,0.23970978,101760.0,101750.0,0.37822077]
[1762992201384,0.23970978,101760.0,101750.0,0.32435893]
[1762992201821,0.23970978,101760.0,101750.0,0.12779874]
[1762992202042,0.19698978,101760.0,101750.0,0.32435893]
[1762992202278,0.23970978,101760.0,101750.0,0.32435893]
[1762992204201,0.23970978,101760.0,101750.0,0.12779874]
[1762992207123,0.28452423,101760.0,101750.0,0.06309874]
[1762992207432,0.45624703,101760.0,101750.0,0.001]
[1762992207638,0.45624703,101760.0,101750.0,0.04441874]
[1762992208321,0.40626316,101760.0,101750.0,0.001]
[1762992208529,0.40626316,101760.0,101750.0,0.04441874]
[1762992208927,0.40626231,101760.0,101750.0,0.04441874]
[1762992209761,0.37980231,101760.0,101750.0,0.04441874]
[1762992211530,0.37980231,101760.0,101750.0,0.06433874]
[1762992212887,0.35334231,101760.0,101750.0,0.12708874]
[1762992214248,0.35334231,101760.0,101750.0,0.08990874]
[1762992214669,0.37779231,101760.0,101750.0,0.08990874]
[1762992218554,0.37779231,101760.0,101750.0,0.06433874]
[1762992220650,0.1420882,101760.0,101750.0,0.06433874]
[1762992220854,0.33862908,101760.0,101750.0,0.06433874]
[1762992225059,0.3681475,101760.0,101750.0,0.06433874]
[1762992229395,0.3436975,101760.0,101750.0,0.12708874]
[1762992229926,0.2444129,101760.0,101750.0,0.35788371]
[1762992230138,0.0610736,101760.0,101750.0,0.35788371]
[1762992230363,0.23926088,101760.0,101750.0,0.35788371]
[1762992230593,0.04272,101760.0,101750.0,0.35788371]
[1762992231547,0.20663449,101770.0,101760.0,0.19654088]
[1762992231894,0.26770507,101770.0,101760.0,0.27921088]
[1762992232100,0.26961178,101770.0,101760.0,0.33465334]
[1762992232643,0.26961178,101770.0,101760.0,0.27921088]
[1762992232840,0.26961178,101770.0,101760.0,0.08267]
[1762992234585,0.26961178,101770.0,101760.0,0.27921088]
[1762992234787,0.26961178,101770.0,101760.0,0.08267]
[1762992235004,0.26961178,101770.0,101760.0,0.27921088]
[1762992235529,0.26961178,101770.0,101760.0,0.08267]
[1762992235738,0.26961178,101770.0,101760.0,0.27921088]
[1762992236370,0.26961178,101770.0,101760.0,0.08267]
[1762992237663,0.26961178,101770.0,101760.0,0.27921088]
[1762992238266,0.26961178,101770.0,101760.0,0.33654534]
[1762992239223,0.26961178,101770.0,101760.0,0.27921088]
[1762992239830,0.02045729,101770.0,101760.0,0.32262962]
[1762992240057,0.25969885,101770.0,101760.0,0.32262962]
[1762992240245,0.06317729,101770.0,101760.0,0.32262962]
[1762992240445,0.00210671,101770.0,101760.0,0.32262962]
[1762992240681,0.00210671,101770.0,101760.0,0.37996408]
[1762992240887,0.00210671,101770.0,101760.0,0.42268408]
[1762992241103,0.00210671,101770.0,101760.0,0.42368408]
[1762992242229,0.19862827,101770.0,101760.0,0.42368408]
[1762992242430,0.00210671,101770.0,101760.0,0.42368408]
[1762992243187,0.00210671,101770.0,101760.0,0.4531901]
[1762992243554,0.00210671,101770.0,101760.0,0.4521901]
[1762992243950,0.00210671,101770.0,101760.0,0.4641901]
[1762992244170,0.19862827,101770.0,101760.0,0.42868408]
[1762992244574,0.19862827,101770.0,101760.0,0.43468408]
[1762992244847,0.19862827,101770.0,101760.0,0.37134962]
[1762992245234,0.19862827,101770.0,101760.0,0.37834962]
[1762992246186,0.19862827,101770.0,101760.0,0.18180874]
[1762992246461,0.19670289,101780.0,101770.0,0.12714874]
[1762992246462,0.16161737,101780.0,101770.0,0.12714874]
[1762992247703,0.16161737,101780.0,101770.0,0.12914874]
[1762992248161,0.16161737,101780.0,101770.0,0.16798157]
[1762992248381,0.16161737,101780.0,101770.0,0.36450313]
[1762992248646,0.16161737,101780.0,101770.0,0.16798157]
[1762992248875,0.16161737,101780.0,101770.0,0.12914874]
[1762992252109,0.16186619,101780.0,101770.0,0.12914874]
[1762992253137,0.16186619,101780.0,101770.0,0.3256703]
[1762992253357,0.00024882,101780.0,101770.0,0.3256703]
[1762992254034,0.19675107,101780.0,101770.0,0.3256703]
[1762992254702,0.23947107,101780.0,101770.0,0.3256703]
[1762992255377,0.04296882,101780.0,101770.0,0.3256703]
[1762992256023,0.00024882,101780.0,101770.0,0.3256703]
[1762992259962,0.00024882,101780.0,101770.0,0.42094923]
[1762992260428,0.00024882,101780.0,101770.0,0.45045154]
[1762992260650,0.00024882,101780.0,101770.0,0.53706474]
[1762992262790,0.00024882,101780.0,101770.0,0.54706473]
[1762992264058,0.00024882,101780.0,101770.0,0.54606473]
[1762992264296,0.00124882,101780.0,101770.0,0.55506473]
[1762992264710,0.00124882,101780.0,101770.0,0.56206473]
[1762992264955,0.00124882,101780.0,101770.0,0.70856473]
[1762992265156,0.00124882,101780.0,101770.0,0.70156473]
[1762992265590,0.00124882,101780.0,101770.0,0.71356473]
[1762992265803,0.00124882,101780.0,101770.0,0.60828581]
[1762992266012,0.00124882,101780.0,101770.0,0.6215035]
[1762992269622,0.00124882,101780.0,101770.0,0.5787835]
[1762992269820,0.00124882,101780.0,101770.0,0.6215035]
[1762992276693,0.19293202,101790.0,101780.0,0.28455099]
[1762992276903,0.21142106,101790.0,101780.0,0.34611032]
[1762992277326,0.21142209,101790.0,101780.0,0.34611032]
[1762992277951,0.21142209,101790.0,101780.0,0.35911032]
[1762992278153,0.193073,101790.0,101780.0,0.35911032]
[1762992279788,0.21142462,101790.0,101780.0,0.13736874]
[1762992280204,0.21142462,101790.0,101780.0,0.09395]
[1762992280616,0.21142462,101790.0,101780.0,0.33387099]
[1762992281036,0.21142462,101790.0,101780.0,0.32687099]
[1762992281320,0.21142462,101790.0,101780.0,0.32787099]
[1762992282162,0.21142462,101790.0,101780.0,0.32187099]
[1762992282438,0.21167341,101790.0,101780.0,0.32187099]
[1762992282651,0.21167341,101790.0,101780.0,0.32287099]
[1762992283833,0.21167341,101790.0,101780.0,0.12636874]
[1762992284945,0.21167341,101790.0,101780.0,0.32287099]
[1762992285157,0.19687272,101790.0,101780.0,0.3823451]
[1762992285385,0.00038977,101790.0,101780.0,0.3823451]
[1762992288816,0.00038977,101790.0,101780.0,0.32287099]
[1762992290207,0.19687272,101790.0,101780.0,0.32287099]
[1762992292471,0.00038977,101790.0,101780.0,0.32287099]
[1762992292671,0.19687272,101790.0,101780.0,0.32287099]
[1762992295934,0.00038977,101790.0,101780.0,0.32287099]
[1762992296362,0.00038977,101790.0,101780.0,0.39554124]
[1762992297344,0.19687272,101790.0,101780.0,0.39554124]
[1762992297631,0.19687272,101790.0,101780.0,0.32287099]
[1762992299796,0.00038977,101790.0,101780.0,0.32287099]
[1762992299974,0.19687272,101790.0,101780.0,0.32287099]
[1762992300383,0.00038977,101790.0,101780.0,0.32287099]
[1762992301495,0.03530977,101790.0,101780.0,0.21717225]
[1762992301695,0.01877181,101790.0,101780.0,0.27496225]
[1762992301883,0.21525476,101790.0,101780.0,0.31838099]
[1762992302256,0.01877181,101790.0,101780.0,0.41436017]
[1762992302801,0.00038977,101790.0,101780.0,0.41436017]
[1762992303386,0.19687272,101790.0,101780.0,0.41436017]
[1762992303833,0.00038977,101790.0,101780.0,0.41436017]
[1762992306056,0.00038977,101790.0,101780.0,0.7903732]
[1762992307234,0.00038977,101790.0,101780.0,0.7893732]
[1762992307442,0.00038977,101790.0,101780.0,0.7883732]
[1762992307646,0.00038977,101790.0,101780.0,0.8003732]
[1762992308052,0.00038977,101790.0,101780.0,0.82887339]
[1762992310137,0.00038977,101790.0,101780.0,0.38068017]
[1762992310346,0.00038977,101790.0,101780.0,0.42340017]
[1762992310564,0.19687272,101790.0,101780.0,0.08746]
[1762992310777,0.19687272,101790.0,101780.0,0.32668225]
[1762992310991,0.19687272,101790.0,101780.0,0.08746]
[1762992311207,0.19687272,101790.0,101780.0,0.02967]
[1762992311208,0.22052272,101790.0,101780.0,0.02967]
[1762992311643,0.22052272,101790.0,101780.0,0.07308874]
[1762992312267,0.19687272,101790.0,101780.0,0.12712874]
[1762992313036,0.19687272,101790.0,101780.0,0.12112874]
[1762992313452,0.19687272,101790.0,101780.0,0.12312874]
[1762992313655,0.2388726,101790.0,101780.0,0.06308874]
[1762992315080,0.2152226,101790.0,101780.0,0.08779874]
[1762992315257,0.2152226,101790.0,101780.0,0.12312874]
[1762992315455,0.2152226,101790.0,101780.0,0.08779874]
[1762992315881,0.21510668,101790.0,101780.0,0.12312874]
[1762992317222,0.23875668,101790.0,101780.0,0.08779874]
[1762992318844,0.23875668,101790.0,101780.0,0.08768277]
[1762992320005,0.21511532,101790.0,101780.0,0.12301277]
[1762992321413,0.26265532,101790.0,101780.0,0.002]
[1762992322423,0.26265532,101790.0,101780.0,0.001]
[1762992322624,0.19650225,101780.0,101770.0,0.06142874]
[1762992322833,0.20840225,101780.0,101770.0,0.09675874]
[1762992323005,0.25112225,101780.0,101770.0,0.12146874]
[1762992323817,0.25112225,101780.0,101770.0,0.12246874]
[1762992324164,0.25112225,101780.0,101770.0,0.12346874]
[1762992324528,0.25112225,101780.0,101770.0,0.08813874]
[1762992327167,0.3462584,101780.0,101770.0,0.04541874]
[1762992327374,0.36460297,101780.0,101770.0,0.04541874]
[1762992327789,0.36460293,101780.0,101770.0,0.04541874]
[1762992328197,0.31448678,101780.0,101770.0,0.04541874]
[1762992328454,0.31448678,101780.0,101770.0,0.04441874]
[1762992328663,0.31448678,101780.0,101770.0,0.04341874]
[1762992329269,0.26946678,101780.0,101770.0,0.08613874]
[1762992329522,0.29071678,101780.0,101770.0,0.06142874]
[1762992330162,0.31196678,101780.0,101770.0,0.04341874]
[1762992330577,0.36579039,101780.0,101770.0,0.04341874]
[1762992330783,0.26918269,101780.0,101770.0,0.04341874]
[1762992331214,0.25083816,101780.0,101770.0,0.04341874]
[1762992331426,0.22958816,101780.0,101770.0,0.04341874]
[1762992331856,0.22958816,101780.0,101770.0,0.06089874]
[1762992332305,0.19652156,101770.0,101760.0,0.01992]
[1762992332518,0.20587156,101770.0,101760.0,0.01992]
[1762992332723,0.20587156,101770.0,101760.0,0.06333874]
[1762992333160,0.20587156,101770.0,101760.0,0.04341874]
[1762992333592,0.20587156,101770.0,101760.0,0.04441874]
[1762992334421,0.20587156,101770.0,101760.0,0.04541874]
[1762992334860,0.23538791,101770.0,101760.0,0.04541874]
[1762992335474,0.24473791,101770.0,101760.0,0.04541874]
[1762992335680,0.26304945,101770.0,101760.0,0.04541874]
[1762992336961,0.23538791,101770.0,101760.0,0.04541874]
[1762992338202,0.25370942,101770.0,101760.0,0.04541874]
[1762992338409,0.26305942,101770.0,101760.0,0.002]
[1762992340093,0.25370942,101770.0,101760.0,0.002]
[1762992341697,0.26305942,101770.0,101760.0,0.002]
[1762992344844,0.28305942,101770.0,101760.0,0.002]
[1762992345598,0.34910047,101770.0,101760.0,0.002]
[1762992346264,0.37022668,101770.0,101760.0,0.002]
[1762992346594,0.28418563,101770.0,101760.0,0.002]
[1762992347036,0.26305942,101770.0,101760.0,0.002]
[1762992350028,0.30577942,101770.0,101760.0,0.002]
[1762992350361,0.29642942,101770.0,101760.0,0.002]
[1762992350573,0.25370942,101770.0,101760.0,0.002]
[1762992350711,0.29642942,101770.0,101760.0,0.002]
[1762992351394,0.30577942,101770.0,101760.0,0.002]
[1762992351600,0.26305942,101770.0,101760.0,0.002]
[1762992351795,0.30577942,101770.0,101760.0,0.002]
[1762992351931,0.26305942,101770.0,101760.0,0.002]
[1762992352134,0.32691425,101770.0,101760.0,0.002]
[1762992355609,0.30577942,101770.0,101760.0,0.002]
[1762992356571,0.32691655,101770.0,101760.0,0.002]
[1762992356785,0.31756655,101770.0,101760.0,0.002]
[1762992356992,0.29642942,101770.0,101760.0,0.002]
[1762992357202,0.31756607,101770.0,101760.0,0.002]
[1762992358449,0.32741607,101770.0,101760.0,0.002]
[1762992358922,0.31756607,101770.0,101760.0,0.002]
[1762992360749,0.32741607,101770.0,101760.0,0.002]
[1762992361327,0.32645607,101770.0,101760.0,0.002]
[1762992362539,0.28373607,101770.0,101760.0,0.002]
[1762992362704,0.32645607,101770.0,101760.0,0.002]
[1762992363943,0.31660607,101770.0,101760.0,0.02019]
[1762992364159,0.26453607,101770.0,101760.0,0.09538774]
[1762992364354,0.25660307,101770.0,101760.0,0.12886774]
[1762992364528,0.21388307,101770.0,101760.0,0.12886774]
[1762992364731,0.25660307,101770.0,101760.0,0.12886774]
[1762992365096,0.25660307,101770.0,101760.0,0.12150874]
[1762992365928,0.21388307,101770.0,101760.0,0.12150874]
[1762992366129,0.25660307,101770.0,101760.0,0.12150874]
[1762992367089,0.21388307,101770.0,101760.0,0.12150874]
[1762992367508,0.25660307,101770.0,101760.0,0.12150874]
[1762992367921,0.25660307,101770.0,101760.0,0.31804962]